lending/lending_fUSD_20241229
["ID","MTS","AMOUNT","RATE_DAILY","PERIOD"]
[347014051,1735467437501,-500.0,0.00012498,2]
[347014052,1735467437525,-1179.33,0.00012498,2]
[347014053,1735467437548,-500.0,0.00012498,2]
[347014054,1735467437573,-1102.06,0.00012498,2]
[347014055,1735467437594,-686.98,0.00012498,2]
[347014056,1735467437616,-2528.08,0.00012498,2]
[347014057,1735467437638,-500.0,0.00012498,2]
[347014058,1735467437660,-1159.85,0.00012498,2]
[347014059,1735467437681,-500.0,0.00012498,2]
[347014060,1735467437704,-2510.8,0.00012498,2]
[347014061,1735467437728,-500.0,0.00012498,2]
[347014062,1735467437750,-500.0,0.00012498,2]
[347014063,1735467437772,-500.0,0.00012498,2]
[347014064,1735467437794,-500.0,0.00012498,2]
[347014065,1735467437817,-500.0,0.00012498,2]
[347014066,1735467437839,-500.0,0.00012498,2]
[347014067,1735467437862,-1665.65,0.00012498,2]
[347014068,1735467437885,-500.0,0.00012498,2]
[347014069,1735467437907,-5444.12,0.00012498,2]
[347014070,1735467437930,-500.0,0.00012498,2]
[347014071,1735467437952,-500.0,0.00012498,2]
[347014072,1735467437977,-1680.88,0.00012498,2]
[347014073,1735467438001,-500.0,0.00012498,2]
[347014074,1735467438024,-500.0,0.00012498,2]
[347014075,1735467438047,-500.0,0.00012498,2]
[347014076,1735467438070,-1191.11,0.00012498,2]
[347014077,1735467438096,-4128.98,0.00012498,2]
[347014078,1735467438119,-157.238866,0.00012498,2]
[347014079,1735467438141,-154.439595,0.00012498,2]
[347014080,1735467438164,-1349.203633,0.00012498,2]
[347014081,1735467438186,-1114.9,0.00012498,2]
[347014082,1735467438209,-683.01,0.00012498,2]
[347014083,1735467438233,-1299.454703,0.00012498,2]
[347014084,1735467438256,-677.86,0.00012498,2]
[347014085,1735467438278,-729.83,0.00012498,2]
[347014086,1735467438301,-11675.83,0.00012498,2]
[347014087,1735467438324,-504.49,0.00012498,2]
[347014088,1735467438345,-500.0,0.00012498,2]
[347014089,1735467438367,-500.0,0.00012498,2]
[347014090,1735467438389,-532.0,0.00012498,2]
[347014091,1735467438566,-1087.45,0.00012498,2]
[347014092,1735467438589,-1645.7,0.00012498,2]
[347014093,1735467438612,-1410.61,0.00012498,2]
[347014094,1735467438634,-500.0,0.00012498,2]
[347014095,1735467438657,-1268.13,0.00012498,2]
[347014096,1735467438679,-604.61,0.00012498,2]
[347014097,1735467438701,-500.0,0.00012498,2]
[347014098,1735467438726,-913.92,0.00012498,2]
[347014099,1735467438748,-1166.01,0.00012498,2]
[347014100,1735467438769,-500.0,0.00012498,2]
[347014101,1735467438792,-500.0,0.00012498,2]
[347014102,1735467438815,-2971.3,0.00012498,2]
[347014103,1735467438837,-642.11,0.00012498,2]
[347014104,1735467438859,-500.0,0.00012498,2]
[347014105,1735467438883,-500.0,0.00012498,2]
[347014106,1735467438905,-151.865662,0.00012498,2]
[347014107,1735467438928,-157.91262,0.00012498,2]
[347014108,1735467438950,-154.274115,0.00012498,2]
[347014109,1735467438976,-842.65,0.00012498,2]
[347014110,1735467439000,-1787.51,0.00012498,2]
[347014111,1735467439023,-500.0,0.00012498,2]
[347014112,1735467439045,-1185.86,0.00012498,2]
[347014113,1735467439070,-4662.87,0.00012498,2]
[347014114,1735467439093,-500.0,0.00012498,2]
[347014115,1735467439115,-500.0,0.00012498,2]
[347014116,1735467439137,-4230.01,0.00012498,2]
[347014117,1735467439160,-500.0,0.00012498,2]
[347014118,1735467439182,-500.0,0.00012498,2]
[347014119,1735467439205,-500.0,0.00012498,2]
[347014120,1735467439227,-500.0,0.00012498,2]
[347014121,1735467439249,-1160.25,0.00012498,2]
[347014122,1735467439272,-2088.35,0.00012498,2]
[347014123,1735467439294,-500.0,0.00012498,2]
[347014124,1735467439316,-615.77,0.00012498,2]
[347014125,1735467439339,-2412.58,0.00012498,2]
[347014126,1735467439362,-3625.84,0.00012498,2]
[347014127,1735467439384,-500.0,0.00012498,2]
[347014128,1735467439406,-814.39,0.00012498,2]
[347014129,1735467439428,-1592.05,0.00012498,2]
[347014130,1735467439451,-716.59,0.00012498,2]
[347014131,1735467439477,-540.05,0.00012498,2]
[347014132,1735467439503,-500.0,0.00012498,2]
[347014133,1735467439528,-1246.44,0.00012498,2]
[347014134,1735467439551,-500.0,0.00012498,2]
[347014135,1735467439574,-500.0,0.00012498,2]
[347014136,1735467439599,-590.52,0.00012498,2]
[347014137,1735467439621,-1066.9,0.00012498,2]
[347014138,1735467439645,-1445.45,0.00012498,2]
[347014139,1735467439667,-559.04,0.00012498,2]
[347014140,1735467439688,-500.0,0.00012498,2]
[347014141,1735467439711,-500.0,0.00012498,2]
[347014142,1735467439734,-651.2,0.00012498,2]
[347014143,1735467439757,-500.0,0.00012498,2]
[347014144,1735467439779,-1207.46,0.00012498,2]
[347014145,1735467439801,-592.21,0.00012498,2]
[347014146,1735467439825,-505.12,0.00012498,2]
[347014147,1735467439847,-1053.92,0.00012498,2]
[347014148,1735467439870,-500.0,0.00012498,2]
[347014149,1735467439893,-821.36,0.00012498,2]
[347014150,1735467439915,-786.66,0.00012498,2]
[347014151,1735467439937,-3756.0,0.00012498,2]
[347014152,1735467439959,-500.0,0.00012498,2]
[347014153,1735467439982,-8645.92,0.00012498,2]
[347014154,1735467440004,-500.0,0.00012498,2]
[347014155,1735467440028,-6104.18,0.00012498,2]
[347014156,1735467440050,-1027.25,0.00012498,2]
[347014157,1735467440072,-543.2,0.00012498,2]
[347014158,1735467440094,-1225.12,0.00012498,2]
[347014159,1735467440116,-540.47,0.00012498,2]
[347014160,1735467440140,-628.07,0.00012498,2]
[347014161,1735467440164,-1910.61,0.00012498,2]
[347014162,1735467440186,-943.18,0.00012498,2]
[347014163,1735467440210,-500.0,0.00012498,2]
[347014164,1735467440234,-500.0,0.00012499,2]
[347014165,1735467440258,-500.0,0.00012499,2]
[347014166,1735467440283,-500.0,0.00012499,2]
[347014167,1735467440307,-500.0,0.00012499,2]
[347014168,1735467440332,-500.0,0.00012499,2]
[347014169,1735467440356,-500.0,0.00012499,2]
[347014170,1735467440379,-481.63894714,0.00012499,2]
[347014171,1735467440402,-500.0,0.00012499,2]
[347014172,1735467440425,-500.0,0.00012499,2]
[347014173,1735467440448,-559.75,0.00012499,2]
[347014174,1735467440471,-500.0,0.00012499,2]
[347014175,1735467440496,-500.0,0.00012499,2]
[347014176,1735467440519,-500.0,0.00012499,2]
[347014177,1735467440543,-500.0,0.00012499,2]
[347014178,1735467440567,-500.0,0.00012499,2]
[347014179,1735467440590,-500.0,0.00012499,2]
[347014180,1735467440612,-500.0,0.00012499,2]
[347014181,1735467440636,-500.0,0.00012499,2]
[347014182,1735467440659,-641.6012617,0.00012499,2]
[347014183,1735467440682,-500.0,0.00012499,2]
[347014184,1735467440704,-500.0,0.00012499,2]
[347014185,1735467440727,-500.0,0.00012499,2]
[347014186,1735467440748,-500.0,0.00012499,2]
[347014187,1735467440770,-500.0,0.00012499,2]
[347014188,1735467440791,-500.0,0.00012499,2]
[347014189,1735467440813,-500.0,0.00012499,2]
[347014190,1735467440836,-531.52319578,0.00012499,2]
[347014191,1735467440858,-500.0,0.00012499,2]
[347014192,1735467440880,-500.0,0.00012499,2]
[347014193,1735467440904,-500.0,0.00012499,2]
[347014194,1735467440927,-500.0,0.00012499,2]
[347014195,1735467440950,-150.854693,0.00012499,2]
[347014196,1735467440973,-500.0,0.00012499,2]
[347014197,1735467440997,-500.0,0.00012499,2]
[347014198,1735467441021,-500.0,0.00012499,2]
[347014199,1735467441046,-500.0,0.00012499,2]
[347014200,1735467441070,-157.671858,0.00012499,2]
[347014201,1735467441091,-500.0,0.00012499,2]
[347014202,1735467441114,-500.0,0.00012499,2]
[347014203,1735467441136,-500.0,0.00012499,2]
[347014204,1735467441158,-636.33947206,0.00012499,2]
[347014205,1735467441181,-500.0,0.00012499,2]
[347014206,1735467441204,-500.0,0.00012499,2]
[347014207,1735467441228,-500.62610563,0.00012499,2]
[347014208,1735467441401,-500.0,0.00012499,2]
[347014209,1735467441429,-500.0,0.00012499,2]
[347014210,1735467441456,-500.0,0.00012499,2]
[347014211,1735467441482,-500.0,0.00012499,2]
[347014212,1735467441505,-500.0,0.00012499,2]
[347014213,1735467441528,-500.0,0.00012499,2]
[347014214,1735467441550,-500.0,0.00012499,2]
[347014215,1735467441576,-500.0,0.00012499,2]
[347014216,1735467441599,-500.0,0.00012499,2]
[347014217,1735467441622,-500.0,0.00012499,2]
[347014218,1735467441644,-500.0,0.00012499,2]
[347014219,1735467441666,-500.0,0.00012499,2]
[347014220,1735467441691,-500.0,0.00012499,2]
[347014221,1735467441712,-500.0,0.00012499,2]
[347014222,1735467441736,-500.0,0.00012499,2]
[347014223,1735467441760,-500.0,0.00012499,2]
[347014224,1735467441785,-500.0,0.00012499,2]
[347014225,1735467441807,-500.0,0.00012499,2]
[347014226,1735467441830,-1218.33,0.00012499,2]
[347014227,1735467441852,-378.69779124,0.00012499,2]
[347014228,1735467441875,-500.0,0.00012499,2]
[347014229,1735467441897,-193.25412059,0.00012499,2]
[347014230,1735467441920,-500.0,0.00012499,2]
[347014231,1735467441944,-500.0,0.00012499,2]
[347014232,1735467441966,-500.0,0.00012499,2]
[347014233,1735467441988,-500.0,0.00012499,2]
[347014234,1735467442011,-408.04878541,0.00012499,2]
[347014235,1735467442034,-500.0,0.00012499,2]
[347014236,1735467442057,-500.0,0.00012499,2]
[347014237,1735467442079,-500.0,0.00012499,2]
[347014238,1735467442101,-300.0,0.00012499,2]
[347014239,1735467442124,-500.0,0.00012499,2]
[347014240,1735467442147,-236.87672376,0.00012499,2]
[347014241,1735467442169,-500.0,0.00012499,2]
[347014242,1735467442191,-500.0,0.00012499,2]
[347014243,1735467442214,-500.0,0.00012499,2]
[347014244,1735467442240,-502.00972918,0.00012499,2]
[347014245,1735467442262,-500.0,0.00012499,2]
[347014246,1735467442284,-500.0,0.00012499,2]
[347014247,1735467442306,-500.0,0.00012499,2]
[347014248,1735467442328,-500.0,0.00012499,2]
[347014249,1735467442350,-500.0,0.00012499,2]
[347014250,1735467442372,-500.0,0.00012499,2]
[347014251,1735467442395,-500.0,0.00012499,2]
[347014252,1735467442418,-500.0,0.00012499,2]
[347014253,1735467442440,-500.0,0.00012499,2]
[347014254,1735467442465,-500.0,0.00012499,2]
[347014255,1735467442492,-500.0,0.00012499,2]
[347014256,1735467442516,-500.0,0.00012499,2]
[347014257,1735467442543,-793.62,0.00012499,7]
[347014258,1735467442568,-500.0,0.00012499,2]
[347014259,1735467442593,-500.0,0.00012499,2]
[347014260,1735467442618,-500.0,0.00012499,2]
[347014261,1735467442642,-500.0,0.00012499,2]
[347014262,1735467442668,-500.0,0.00012499,2]
[347014263,1735467442693,-500.0,0.00012499,2]
[347014264,1735467442718,-500.0,0.00012499,2]
[347014265,1735467442740,-500.0,0.00012499,2]
[347014266,1735467442766,-500.0,0.00012499,2]
[347014267,1735467442788,-337.24933467,0.00012499,2]
[347014268,1735467442812,-500.0,0.00012499,2]
[347014269,1735467442834,-500.0,0.00012499,2]
[347014270,1735467442860,-500.0,0.00012499,2]
[347014271,1735467442882,-500.0,0.00012499,2]
[347014272,1735467442907,-515.29720162,0.00012499,2]
[347014273,1735467442930,-500.0,0.00012499,2]
[347014274,1735467442954,-500.0,0.00012499,2]
[347014275,1735467442977,-502.4646789,0.00012499,2]
[347014276,1735467443001,-500.0,0.00012499,2]
[347014277,1735467443026,-500.0,0.00012499,2]
[347014278,1735467443049,-500.0,0.00012499,2]
[347014279,1735467443072,-500.0,0.00012499,2]
[347014280,1735467443096,-500.0,0.00012499,2]
[347014281,1735467443120,-500.0,0.00012499,2]
[347014282,1735467443145,-500.0,0.00012499,2]
[347014283,1735467443168,-500.0,0.00012499,2]
[347014284,1735467443194,-500.0,0.00012499,2]
[347014285,1735467443217,-500.0,0.00012499,2]
[347014286,1735467443238,-500.0,0.00012499,2]
[347014287,1735467443262,-500.0,0.00012499,2]
[347014288,1735467443286,-500.0,0.00012499,2]
[347014289,1735467443308,-500.0,0.00012499,2]
[347014290,1735467443331,-657.17,0.00012499,2]
[347014291,1735467443354,-571.96,0.00012499,2]
[347014292,1735467443376,-500.0,0.00012499,2]
[347014293,1735467443402,-500.0,0.00012499,2]
[347014294,1735467443427,-500.0,0.00012499,2]
[347014295,1735467443450,-500.0,0.00012499,2]
[347014296,1735467443475,-500.0,0.00012499,2]
[347014297,1735467443504,-500.0,0.00012499,2]
[347014298,1735467443529,-500.0,0.00012499,2]
[347014299,1735467443552,-554.50116122,0.00012499,2]
[347014300,1735467443579,-500.0,0.00012499,2]
[347014301,1735467443602,-500.0,0.00012499,2]
[347014302,1735467443624,-500.0,0.00012499,2]
[347014303,1735467443649,-556.33089678,0.00012499,2]
[347014304,1735467443672,-500.0,0.00012499,2]
[347014305,1735467443694,-500.0,0.00012499,2]
[347014306,1735467443721,-500.0,0.00012499,2]
[347014307,1735467443744,-500.0,0.00012499,2]
[347014308,1735467443766,-500.0,0.00012499,2]
[347014309,1735467443787,-500.0,0.00012499,2]
[347014310,1735467443809,-500.0,0.00012499,2]
[347014311,1735467443833,-503.76,0.00012499,2]
[347014312,1735467443854,-497.82616797,0.00012499,2]
[347014313,1735467443877,-500.0,0.00012499,2]
[347014314,1735467443900,-500.0,0.00012499,2]
[347014315,1735467443923,-500.0,0.00012499,2]
[347014316,1735467443945,-500.0,0.00012499,2]
[347014317,1735467443968,-500.0,0.00012499,2]
[347014318,1735467443990,-500.0,0.00012499,2]
[347014319,1735467444014,-500.0,0.00012499,2]
[347014320,1735467444036,-500.0,0.00012499,2]
[347014321,1735467444060,-500.0,0.00012499,2]
[347014322,1735467444082,-500.0,0.00012499,2]
[347014323,1735467444105,-500.0,0.00012499,2]
[347014324,1735467444127,-500.0,0.00012499,2]
[347014325,1735467444150,-500.0,0.00012499,2]
[347014326,1735467444391,-500.0,0.00012499,2]
[347014327,1735467444415,-500.0,0.00012499,2]
[347014328,1735467444438,-1508.89,0.00012499,2]
[347014329,1735467444464,-500.0,0.00012499,2]
[347014330,1735467444491,-500.0,0.00012499,2]
[347014331,1735467444516,-500.0,0.00012499,2]
[347014332,1735467444541,-500.0,0.00012499,2]
[347014333,1735467444568,-500.0,0.00012499,2]
[347014334,1735467444592,-500.0,0.00012499,2]
[347014335,1735467444617,-500.0,0.00012499,2]
[347014336,1735467444641,-500.0,0.00012499,2]
[347014337,1735467444667,-500.0,0.00012499,2]
[347014338,1735467444692,-1679.53,0.00012499,2]
[347014339,1735467444718,-1868.39,0.00012499,2]
[347014340,1735467444743,-500.0,0.00012499,2]
[347014341,1735467444765,-500.0,0.00012499,2]
[347014342,1735467444789,-500.0,0.00012499,2]
[347014343,1735467444811,-500.0,0.00012499,2]
[347014344,1735467444836,-500.0,0.00012499,2]
[347014345,1735467444863,-500.0,0.00012499,2]
[347014346,1735467444886,-500.0,0.00012499,2]
[347014347,1735467444911,-600.19,0.00012499,2]
[347014348,1735467444934,-1898.51,0.00012499,2]
[347014349,1735467444957,-312.54292727,0.00012499,2]
[347014350,1735467444981,-500.0,0.00012499,2]
[347014351,1735467445004,-500.0,0.00012499,2]
[347014352,1735467445026,-1033.0,0.00012499,2]
[347014353,1735467445049,-976.66,0.00012499,2]
[347014354,1735467445072,-500.0,0.00012499,2]
[347014355,1735467445094,-500.0,0.00012499,2]
[347014356,1735467445118,-5611.4,0.00012499,2]
[347014357,1735467445141,-500.0,0.00012499,2]
[347014358,1735467445164,-500.0,0.00012499,2]
[347014359,1735467445186,-500.0,0.00012499,2]
[347014360,1735467445209,-500.0,0.00012499,2]
[347014361,1735467445234,-500.0,0.00012499,2]
[347014362,1735467445257,-500.0,0.00012499,2]
[347014363,1735467445280,-500.0,0.00012499,2]
[347014364,1735467445304,-500.0,0.00012499,2]
[347014365,1735467445327,-205.05387204,0.00012499,2]
[347014366,1735467445350,-500.0,0.00012499,2]
[347014367,1735467445374,-500.0,0.00012499,2]
[347014368,1735467445398,-500.0,0.00012499,2]
[347014369,1735467445424,-500.0,0.00012499,2]
[347014370,1735467445450,-500.0,0.00012499,2]
[347014371,1735467445475,-501.94989201,0.00012499,2]
[347014372,1735467445501,-500.0,0.00012499,2]
[347014373,1735467445523,-500.0,0.00012499,2]
[347014374,1735467445545,-500.0,0.00012499,2]
[347014375,1735467445571,-254.76531366,0.00012499,2]
[347014376,1735467445593,-500.0,0.00012499,2]
[347014377,1735467445615,-500.0,0.00012499,2]
[347014378,1735467445637,-500.0,0.00012499,2]
[347014379,1735467445660,-500.0,0.00012499,2]
[347014380,1735467445682,-500.0,0.00012499,2]
[347014381,1735467445704,-5159.8,0.00012499,2]
[347014382,1735467445726,-500.0,0.00012499,2]
[347014383,1735467445748,-500.0,0.00012499,2]
[347014384,1735467445770,-500.0,0.00012499,2]
[347014385,1735467445792,-500.0,0.00012499,2]
[347014386,1735467445814,-500.0,0.00012499,2]
[347014387,1735467445838,-2228.27,0.00012499,2]
[347014388,1735467445860,-500.0,0.00012499,2]
[347014389,1735467445883,-500.0,0.00012499,2]
[347014390,1735467445905,-500.0,0.00012499,2]
[347014391,1735467445928,-3234.98,0.00012499,2]
[347014392,1735467445950,-500.0,0.00012499,2]
[347014393,1735467445973,-500.0,0.00012499,2]
[347014394,1735467445996,-500.0,0.00012499,2]
[347014395,1735467446018,-500.0,0.00012499,2]
[347014396,1735467446044,-1341.22,0.00012499,2]
[347014397,1735467446066,-500.0,0.00012499,2]
[347014398,1735467446089,-500.0,0.00012499,2]
[347014399,1735467446112,-705.78324114,0.000126,2]
[347014400,1735467446134,-500.0,0.0001267,2]
[347014401,1735467446156,-186.38851137,0.000127,2]
[347014402,1735467446178,-182.57580493,0.000127,2]
[347014403,1735467446201,-228.21176504,0.000127,2]
[347014404,1735467446224,-500.0,0.00012771,2]
[347014405,1735467446248,-500.0,0.00012771,2]
[347014406,1735467446270,-500.0,0.00012771,2]
[347014407,1735467446292,-500.0,0.00012771,2]
[347014408,1735467446314,-500.0,0.00012771,2]
[347014409,1735467446336,-500.0,0.00012771,2]
[347014410,1735467446359,-500.0,0.00012771,2]
[347014411,1735467446381,-500.0,0.00012771,2]
[347014412,1735467446403,-500.0,0.00012771,2]
[347014413,1735467446426,-500.0,0.00012771,2]
[347014414,1735467446449,-500.0,0.00012771,2]
[347014415,1735467446472,-632.4,0.00012771,2]
[347014416,1735467446502,-500.0,0.00012771,2]
[347014417,1735467446526,-500.0,0.00012771,2]
[347014418,1735467446551,-500.0,0.00012771,2]
[347014419,1735467446577,-500.0,0.00012771,2]
[347014420,1735467446601,-500.0,0.00012771,2]
[347014421,1735467446626,-500.0,0.00012771,2]
[347014422,1735467446650,-500.0,0.00012771,2]
[347014423,1735467446673,-500.0,0.00012771,2]
[347014424,1735467446699,-500.0,0.00012771,2]
[347014425,1735467446721,-500.0,0.00012771,2]
[347014426,1735467446744,-500.0,0.00012771,2]
[347014427,1735467446766,-500.0,0.00012771,2]
[347014428,1735467446788,-500.0,0.00012771,2]
[347014429,1735467446810,-500.0,0.00012771,2]
[347014430,1735467446833,-500.0,0.00012771,2]
[347014431,1735467446855,-500.0,0.00012771,2]
[347014432,1735467446877,-500.0,0.00012771,2]
[347014433,1735467446900,-500.0,0.00012771,2]
[347014434,1735467446922,-500.0,0.00012771,2]
[347014435,1735467446944,-500.0,0.00012771,2]
[347014436,1735467446966,-500.0,0.00012771,2]
[347014437,1735467446989,-500.0,0.00012771,2]
[347014438,1735467447012,-500.0,0.00012771,2]
[347014439,1735467447036,-500.0,0.00012771,2]
[347014440,1735467447058,-500.0,0.00012771,2]
[347014441,1735467447080,-500.0,0.00012771,2]
[347014442,1735467447102,-500.0,0.00012771,2]
[347014443,1735467447282,-3781.22,0.00012771,2]
[347014444,1735467447305,-500.0,0.00012771,2]
[347014445,1735467447327,-500.0,0.00012771,2]
[347014446,1735467447349,-500.0,0.00012771,2]
[347014447,1735467447371,-500.0,0.00012771,2]
[347014448,1735467447393,-500.0,0.00012771,2]
[347014449,1735467447414,-500.0,0.00012771,2]
[347014450,1735467447437,-500.0,0.00012771,2]
[347014451,1735467447460,-500.0,0.00012771,2]
[347014452,1735467447487,-527.65,0.00012771,2]
[347014453,1735467447508,-500.0,0.00012771,2]
[347014454,1735467447530,-500.0,0.00012771,2]
[347014455,1735467447553,-500.0,0.00012771,2]
[347014456,1735467447579,-500.0,0.00012771,2]
[347014457,1735467447603,-500.0,0.00012771,2]
[347014458,1735467447629,-500.0,0.00012771,2]
[347014459,1735467447655,-500.0,0.00012771,2]
[347014460,1735467447677,-500.0,0.00012771,2]
[347014461,1735467447699,-500.0,0.00012771,2]
[347014462,1735467447724,-6265.96,0.00012771,2]
[347014463,1735467447747,-500.0,0.00012771,2]
[347014464,1735467447768,-500.0,0.00012771,2]
[347014465,1735467447790,-500.0,0.00012771,2]
[347014466,1735467447812,-500.0,0.00012771,2]
[347014467,1735467447834,-500.0,0.00012771,2]
[347014468,1735467447856,-500.0,0.00012771,2]
[347014469,1735467447879,-500.0,0.00012771,2]
[347014470,1735467447902,-2799.56,0.00012771,2]
[347014471,1735467447924,-500.0,0.00012771,2]
[347014472,1735467447946,-500.0,0.00012771,2]
[347014473,1735467447968,-500.0,0.00012771,2]
[347014474,1735467447990,-641.56,0.00012771,2]
[347014475,1735467448013,-535.52,0.00012772,2]
[347014476,1735467448038,-1183.72,0.00012772,2]
[347014477,1735467448061,-500.0,0.00012772,2]
[347014478,1735467448084,-1224.76,0.00012772,2]
[347014479,1735467448107,-950.78,0.00012772,2]
[347014480,1735467448130,-500.0,0.00012772,2]
[347014481,1735467448153,-970.17,0.00012772,2]
[347014482,1735467448175,-500.0,0.00012772,2]
[347014483,1735467448197,-515.77403588,0.00012772,2]
[347014484,1735467448221,-616.31,0.00012772,2]
[347014485,1735467448244,-500.0,0.00012772,2]
[347014486,1735467448268,-1006.1,0.00012772,2]
[347014487,1735467448291,-2093.1,0.00012772,2]
[347014488,1735467448318,-500.0,0.00012772,2]
[347014489,1735467448342,-527.88,0.00012772,2]
[347014490,1735467448364,-500.0,0.00012772,2]
[347014491,1735467448387,-834.19,0.00012772,2]
[347014492,1735467448410,-500.0,0.00012772,2]
[347014493,1735467448434,-500.0,0.00012772,2]
[347014494,1735467448458,-3408.74,0.00012772,2]
[347014495,1735467448484,-500.0,0.00012772,2]
[347014496,1735467448506,-500.0,0.00012772,2]
[347014497,1735467448530,-500.0,0.00012772,2]
[347014498,1735467448556,-1239.19,0.00012772,2]
[347014499,1735467448582,-741.03,0.00012772,2]
[347014500,1735467448605,-500.0,0.00012772,2]
[347014501,1735467448627,-1179.33,0.00012772,2]
[347014502,1735467448652,-1102.06,0.00012772,2]
[347014503,1735467448675,-686.98,0.00012772,2]
[347014504,1735467448700,-2528.08,0.00012772,2]
[347014505,1735467448725,-500.0,0.00012772,2]
[347014506,1735467448752,-1159.85,0.00012772,2]
[347014507,1735467448775,-500.0,0.00012772,2]
[347014508,1735467448799,-2510.8,0.00012772,2]
[347014509,1735467448821,-500.0,0.00012772,2]
[347014510,1735467448845,-500.0,0.00012772,2]
[347014511,1735467448870,-500.0,0.00012772,2]
[347014512,1735467448893,-500.0,0.00012772,2]
[347014513,1735467448917,-500.0,0.00012772,2]
[347014514,1735467448940,-500.0,0.00012772,2]
[347014515,1735467448963,-1665.65,0.00012772,2]
[347014516,1735467448986,-5444.12,0.00012772,2]
[347014517,1735467449009,-500.0,0.00012772,2]
[347014518,1735467449031,-346.7,0.00012772,2]
[347014519,1735467449055,-1680.88,0.00012772,2]
[347014520,1735467449078,-500.0,0.00012772,2]
[347014521,1735467449100,-500.0,0.00012772,2]
[347014522,1735467449123,-500.0,0.00012772,2]
[347014523,1735467449146,-1191.11,0.00012772,2]
[347014524,1735467449171,-4128.98,0.00012772,2]
[347014525,1735467449197,-1349.203633,0.00012772,2]
[347014526,1735467449222,-1114.9,0.00012772,2]
[347014527,1735467449246,-683.01,0.00012772,2]
[347014528,1735467449269,-1299.454703,0.00012772,2]
[347014529,1735467449293,-677.86,0.00012772,2]
[347014530,1735467449318,-729.83,0.00012772,2]
[347014531,1735467449343,-11675.83,0.00012772,2]
[347014532,1735467449369,-504.49,0.00012772,2]
[347014533,1735467449396,-500.0,0.00012772,2]
[347014534,1735467449422,-500.0,0.00012772,2]
[347014535,1735467449447,-532.0,0.00012772,2]
[347014536,1735467449470,-1087.45,0.00012772,2]
[347014537,1735467449495,-1645.7,0.00012772,2]
[347014538,1735467449519,-500.0,0.00012772,2]
[347014539,1735467449542,-1410.61,0.00012772,2]
[347014540,1735467449565,-1268.13,0.00012772,2]
[347014541,1735467449587,-604.61,0.00012772,2]
[347014542,1735467449610,-500.0,0.00012772,2]
[347014543,1735467449633,-913.92,0.00012772,2]
[347014544,1735467449655,-1166.01,0.00012772,2]
[347014545,1735467449677,-500.0,0.00012772,2]
[347014546,1735467449700,-500.0,0.00012772,2]
[347014547,1735467449722,-2971.3,0.00012772,2]
[347014548,1735467449746,-642.11,0.00012772,2]
[347014549,1735467449769,-500.0,0.00012772,2]
[347014550,1735467449793,-500.0,0.00012772,2]